Workbook

Sheet Calculator
A1: VEHICLE PERSONAL USE COST RECOVERY CALCULATOR
B4: COUNTRY PROGRAM / FIELD OFFICE: | D4: NAIROBI (ALL)
B6: LOCAL CURRENCY CODE: | D6: KES
B8: DATE OF CALCULATION: | D8: 2010-10-13
B10: ="EXCHANGE RATE (" & D6 & " per USD): " -> EXCHANGE RATE (KES per USD): | D10: 80.75
B13: NUMBER OF DIESEL VEHICLES IN FLEET = | D13: =Vehicles!I106 -> 18 | E13: AVERAGE ESTIMATED KM PER LITER (DIESEL) = | G13: =Vehicles!F3 -> 9.58071198
B15: NUMBER OF PETROL VEHICLES IN FLEET = | D15: =Vehicles!J106 -> 27 | E15: AVERAGE ESTIMATED KM PER LITER (PETROL) = | G15: =Vehicles!F6 -> 9.817360719
B18: TOTAL NUMBER OF VEHICLES IN FLEET = | D18: =D13+D15 -> 45 | E18: AVERAGE ESTIMATED KM PER LITER (ALL VEHICLES) = | G18: =IF(D13+D15=0,0,((D13*G13)+(D15*G15))/(D13+D15)) -> 9.722701223
B22: ="FUEL " & D6 & " COST PER LITER (DIESEL) = " -> FUEL KES COST PER LITER (DIESEL) = | D22: 83.91 | F22: FUEL USD EQUIVALENT COST PER LITER (DIESEL) = | G22: =D22/D$10 -> 1.039133127
B24: ="FUEL " & D6 & " COST PER LITER (PETROL) = " -> FUEL KES COST PER LITER (PETROL) = | D24: 95.91 | F24: FUEL USD EQUIVALENT COST PER LITER (PETROL) = | G24: =D24/D$10 -> 1.187739938
B27: ="AVERAGE FUEL " & D6 & " COST PER KM (DIESEL) = " -> AVERAGE FUEL KES COST PER KM (DIESEL) = | D27: =IF(D13=0,0,D22/G13) -> 8.758221746 | F27: AVERAGE FUEL USD COST PER KM (DIESEL) = | G27: =IF(D13=0,0,G22/G13) -> 0.1084609504
B29: ="AVERAGE FUEL " & D6 & " COST PER KM (PETROL) = " -> AVERAGE FUEL KES COST PER KM (PETROL) = | D29: =IF(D15=0,0,D24/G15) -> 9.769428133 | F29: AVERAGE FUEL USD COST PER KM (PETROL) = | G29: =IF(D15=0,0,G24/G15) -> 0.1209836301
B32: ="WEIGHTED AVG FUEL " & D6 & " COST PER KM (PER VEHICLE) = " -> WEIGHTED AVG FUEL KES COST PER KM (PER VEHICLE) = | D32: =(IF(D13+D15=0,0,(($D$13*D27)+($D$15*D29))/$D$18)) -> 9.364945578 | F32: WEIGHTED AVG FUEL USD COST PER KM (PER VEHICLE) = | G32: =(D32/$D$10) -> 0.1159745582
B36: MAINTENANCE SCHEDULE IN KM = | D36: 5000
B38: ="AVERAGE " & D6 & " REGULAR MAINTENANCE COST (DIESEL) = " -> AVERAGE KES REGULAR MAINTENANCE COST (DIESEL) = | D38: =Vehicles!F4 -> 5037.499444 | F38: AVERAGE USD REGULAR MAINTENANCE COST (DIESEL) = | G38: =IF(D38=0,0,D38/$D$10) -> 62.38389405
B40: ="AVERAGE " & D6 & " REGULAR MAINTENANCE COST (PETROL) = " -> AVERAGE KES REGULAR MAINTENANCE COST (PETROL) = | D40: =Vehicles!F7 -> 6024.754815 | F40: AVERAGE USD REGULAR MAINTENANCE COST (PETROL) = | G40: =IF(D40=0,0,D40/$D$10) -> 74.60996675
B42: ="AVERAGE " & D6 & " REGULAR MAINTENANCE COST PER KM (DIESEL) = " -> AVERAGE KES REGULAR MAINTENANCE COST PER KM (DIESEL) = | D42: =D38/$D$36 -> 1.007499889 | F42: AVERAGE USD REGULAR MAINTENANCE COST PER KM (DIESEL) = | G42: =D42/$D$10 -> 0.01247677881
B44: ="AVERAGE " & D6 & " REGULAR MAINTENANCE COST PER KM (PETROL) = " -> AVERAGE KES REGULAR MAINTENANCE COST PER KM (PETROL) = | D44: =D40/$D$36 -> 1.204950963 | F44: AVERAGE USD REGULAR MAINTENANCE COST PER KM (PETROL) = | G44: =D44/$D$10 -> 0.01492199335
B47: ="WEIGHTED AVG " & D6 & " REG MAINT COST PER KM (PER VEHICLE) = " -> WEIGHTED AVG KES REG MAINT COST PER KM (PER VEHICLE) = | D47: =IF(D13+D15=0,0,(($D$13*D42)+($D$15*D44))/$D$18) -> 1.125970533 | F47: WEIGHTED AVG MAINT USD COST PER KM (DIESEL) = | G47: =(D47/$D$10) -> 0.01394390753
B51: ="WEIGHTED AVG " & D6 & " OPERATING COST PER KM (PER VEHICLE) = " -> WEIGHTED AVG KES OPERATING COST PER KM (PER VEHICLE) = | D51: =IF(D32+D47=0,0,D32+D47) -> 10.49091611 | F51: WEIGHTED AVG USD OPERATING COST PER KM (PER VEHICLE) = | G51: =(D51/$D$10) -> 0.1299184658

Sheet Vehicles
B1: VEHICLE INVENTORY AND NORMAL OPERATING COSTS (FROM VMS)
C3: Diesel Vehicles: | D3: Avg. KM/Liter | F3: =IF(I106=0,0,K106/I106) -> 9.58071198
D4: Avg. Service Cost: | F4: =IF(I106=0,0,M106/I106) -> 5037.499444
C6: Petrol Vehicles: | D6: Avg. KM/Liter | F6: =IF(J106=0,0,L106/J106) -> 9.817360719
D7: Avg. Service Cost: | F7: =IF(J106=0,0,N106/J106) -> 6024.754815
B9: Vehicle Plate Number | C9: Description | D9: Fuel Type | E9: KM/Liter | F9: Average Service Cost | I9: # Diesel | J9: # Petrol | K9: Deisel KM/L | L9: Petrol KM/L | M9: Diesel Maint | N9: Petrol Maint
B10: KAN 109N | C10: Toyota Corolla | D10: Petrol | E10: =100/13.91 -> 7.18907261 | F10: =6086.64 -> 6086.64 | I10: =IF($D10="Diesel",1,0) -> 0 | J10: =IF($D10="Petrol",1,0) -> 1 | K10: =IF($D10="Diesel",$E10,0) -> 0 | L10: =IF($D10="Petrol",$E10,0) -> 7.18907261 | M10: =IF($D10="Diesel",$F10,0) -> 0 | N10: =IF($D10="Petrol",$F10,0) -> 6086.64
B11: KAQ 637R | C11: Nissan Urvan | D11: Petrol | E11: =100/14.39 -> 6.949270327 | F11: =6057.49 -> 6057.49 | I11: =IF($D11="Diesel",1,0) -> 0 | J11: =IF($D11="Petrol",1,0) -> 1 | K11: =IF($D11="Diesel",$E11,0) -> 0 | L11: =IF($D11="Petrol",$E11,0) -> 6.949270327 | M11: 0 | N11: =IF($D11="Petrol",$F11,0) -> 6057.49
B12: KAR 314E | C12: Toyota Prado | D12: Diesel | E12: =100/10.31 -> 9.699321048 | F12: =6050.91 -> 6050.91 | I12: 1 | J12: 0 | K12: 9.699321048 | L12: 0 | M12: 6050.91 | N12: 0
B13: KAR 316E | C13: Toyota Prado | D13: Diesel | E13: =100/10.13 -> 9.871668312 | F13: 6050.91 | I13: 1 | J13: 0 | K13: 9.871668312 | L13: 0 | M13: 6050.91 | N13: 0
B14: KAS 174M | C14: Toyota Prado | D14: Diesel | E14: =100/12.5 -> 8 | F14: =6050.91 -> 6050.91 | I14: 1 | J14: 0 | K14: 8 | L14: 0 | M14: 6050.91 | N14: 0
B15: KAS 175M | C15: Toyota Tacoma D/C Pickup | D15: Diesel | E15: =100/11.97 -> 8.354218881 | F15: =6057.49 -> 6057.49 | I15: 1 | J15: 0 | K15: 8.354218881 | L15: 0 | M15: 6057.49 | N15: 0
B16: KAS 514D | C16: Nissan Urvan | D16: Petrol | E16: =100/11.68 -> 8.561643836 | F16: 6057.49 | I16: 0 | J16: 1 | K16: 0 | L16: 8.561643836 | M16: 0 | N16: 6057.49
B17: KAS 682M | C17: Toyota Corolla | D17: Petrol | E17: =100/7.1 -> 14.08450704 | F17: =6086.64 -> 6086.64 | I17: 0 | J17: 1 | K17: 0 | L17: 14.08450704 | M17: 0 | N17: 6086.64
B18: KAT 128C | C18: Toyota Corolla | D18: Petrol | E18: =100/9.71 -> 10.29866117 | F18: =6086.64 -> 6086.64 | I18: 0 | J18: 1 | K18: 0 | L18: 10.29866117 | M18: 0 | N18: 6086.64
B19: KAT 616C | C19: Toyota Prado | D19: Diesel | E19: =100/9.55 -> 10.47120419 | F19: =6050.91 -> 6050.91 | I19: 1 | J19: 0 | K19: 10.47120419 | L19: 0 | M19: 6050.91 | N19: 0
B20: KAU 711S | C20: Toyota Corolla | D20: Petrol | E20: =100/8.49 -> 11.77856302 | F20: =6086.64 -> 6086.64 | I20: 0 | J20: 1 | K20: 0 | L20: 11.77856302 | M20: 0 | N20: 6086.64
B21: KAY 559A | C21: Toyota Prado | D21: Diesel | E21: =100/10.63 -> 9.407337723 | F21: =6050.91 -> 6050.91 | I21: 1 | J21: 0 | K21: 9.407337723 | L21: 0 | M21: 6050.91 | N21: 0
B22: KAY 658F | C22: Toyota Corolla | D22: Petrol | E22: =100/10.71 -> 9.337068161 | F22: =6086.64 -> 6086.64 | I22: 0 | J22: 1 | K22: 0 | L22: 9.337068161 | M22: 0 | N22: 6086.64
B23: KAY 964A | C23: Toyota Hilux D/C Pickup | D23: Diesel | E23: =100/9.99 -> 10.01001001 | F23: =6057.49 -> 6057.49 | I23: 1 | J23: 0 | K23: 10.01001001 | L23: 0 | M23: 6057.49 | N23: 0
B24: KBC 515Y | C24: Toyota Prado | D24: Diesel | E24: =100/9.38 -> 10.66098081 | F24: =6050.91 -> 6050.91 | I24: 1 | J24: 0 | K24: 10.66098081 | L24: 0 | M24: 6050.91 | N24: 0
B25: KBC 516Y | C25: Toyota Prado | D25: Diesel | E25: =100/8.25 -> 12.12121212 | F25: 6050.91 | I25: 1 | J25: 0 | K25: 12.12121212 | L25: 0 | M25: 6050.91 | N25: 0
B26: KBE 517V | C26: Toyota Prado | D26: Diesel | E26: =100/11.03 -> 9.066183137 | F26: 6050.91 | I26: 1 | J26: 0 | K26: 9.066183137 | L26: 0 | M26: 6050.91 | N26: 0
B27: KBG 109E | C27: Toyota Prado | D27: Diesel | E27: =100/11.03 -> 9.066183137 | F27: 6050.91 | I27: 1 | J27: 0 | K27: 9.066183137 | L27: 0 | M27: 6050.91 | N27: 0
B28: KBJ 533E | C28: Toyota Prado | D28: Diesel | E28: =100/10.88 -> 9.191176471 | F28: 6050.91 | I28: 1 | J28: 0 | K28: 9.191176471 | L28: 0 | M28: 6050.91 | N28: 0
B29: KBD 926W | C29: Toyota Prado | D29: Diesel | E29: =100/10.84 -> 9.225092251 | F29: =6050.91 -> 6050.91 | I29: 1 | J29: 0 | K29: 9.225092251 | L29: 0 | M29: 6050.91 | N29: 0
B30: KBK 421Q | C30: Toyota Prado | D30: Diesel | E30: =100/10.61 -> 9.425070688 | F30: 12000 | I30: 1 | J30: 0 | K30: 9.425070688 | L30: 0 | M30: 12000 | N30: 0
I31: 0 | J31: 0 | K31: 0 | L31: 0 | M31: 0 | N31: 0
I32: 0 | J32: 0 | K32: 0 | L32: 0 | M32: 0 | N32: 0
B33: KAM 252T | C33: Toyota Corolla | D33: Petrol | E33: =100/13.04 -> 7.668711656 | F33: =6086.64 -> 6086.64 | I33: 0 | J33: 1 | K33: 0 | L33: 7.668711656 | M33: =IF($D33="Diesll",$F33,0) -> 0 | N33: 6086.64
B34: KAM 867B | C34: Toyota Corolla | D34: Petrol | E34: =100/13.33 -> 7.501875469 | F34: 8588 | I34: 0 | J34: 1 | K34: 0 | L34: 7.501875469 | M34: 0 | N34: 8588
B35: KAN 117N | C35: Toyota Corolla | D35: Petrol | E35: =100/14.37 -> 6.958942241 | F35: =6086.64 -> 6086.64 | I35: 0 | J35: 1 | K35: 0 | L35: 6.958942241 | M35: 0 | N35: 6086.64
B36: KAN 672R | C36: Toyota Prado | D36: Diesel | E36: =100/10.7 -> 9.345794393 | F36: =6050.91 -> 6050.91 | I36: 1 | J36: 0 | K36: 9.345794393 | L36: 0 | M36: 0 | N36: 0
B37: KAP 987G | C37: Toyota Corolla | D37: Petrol | E37: =100/8.34 -> 11.99040767 | F37: 3722 | I37: 0 | J37: 1 | K37: 0 | L37: 11.99040767 | M37: 0 | N37: 3722
B38: KAQ 831J | C38: Toyota Condor | D38: Diesel | E38: =100/9.53 -> 10.49317943 | F38: 7040 | I38: 1 | J38: 0 | K38: 10.49317943 | L38: 0 | M38: 0 | N38: 0
B39: KAR 106P | C39: Toyota Corolla | D39: Petrol | E39: =100/8.29 -> 12.06272618 | F39: =6086.64 -> 6086.64 | I39: 0 | J39: 1 | K39: 0 | L39: 12.06272618 | M39: 0 | N39: 6086.64
B40: KAT 329Y | C40: Toyota Corolla | D40: Petrol | E40: =100/9.38 -> 10.66098081 | F40: 2720 | I40: 0 | J40: 1 | K40: 0 | L40: 10.66098081 | M40: 0 | N40: 2720
B41: KAT 865Y | C41: Toyota Prado | D41: Diesel | E41: =100/11.35 -> 8.810572687 | F41: 1020.74 | I41: 1 | J41: 0 | K41: 8.810572687 | L41: 0 | M41: 0 | N41: 0
B42: KAW 430Y | C42: Toyota Corolla | D42: Petrol | E42: =100/9.83 -> 10.17293998 | F42: =6086.64 -> 6086.64 | I42: 0 | J42: 1 | K42: 0 | L42: 10.17293998 | M42: 0 | N42: 6086.64
B43: KAW 538G | C43: Toyota Corolla | D43: Petrol | E43: =100/8.89 -> 11.24859393 | F43: 8849 | I43: 0 | J43: 1 | K43: 0 | L43: 11.24859393 | M43: 0 | N43: 8849
B44: KAW 578G | C44: Toyota Corolla | D44: Petrol | E44: =100/9.22 -> 10.84598698 | F44: =6665.52/2 -> 3332.76 | I44: 0 | J44: 1 | K44: 0 | L44: 10.84598698 | M44: 0 | N44: 3332.76
B45: KAY 653Q | C45: Toyota Corolla | D45: Petrol | E45: =100/9.85 -> 10.15228426 | F45: =6086.64 -> 6086.64 | I45: 0 | J45: 1 | K45: 0 | L45: 10.15228426 | M45: 0 | N45: 6086.64
B46: KBB 813G | C46: Toyota Corolla | D46: Petrol | E46: =100/11.02 -> 9.074410163 | F46: =6086.64 -> 6086.64 | I46: 0 | J46: 1 | K46: 0 | L46: 9.074410163 | M46: 0 | N46: 6086.64
B47: KBD 121G | C47: Toyota Prado | D47: Diesel | E47: =100/10.83 -> 9.233610342 | F47: 5132 | I47: 1 | J47: 0 | K47: 9.233610342 | L47: 0 | M47: 0 | N47: 0
B48: KBD 122G | C48: Toyota Avanza | D48: Petrol | E48: =100/9.67 -> 10.34126163 | F48: 8264 | I48: 0 | J48: 1 | K48: 0 | L48: 10.34126163 | M48: 0 | N48: 8264
B49: KBE 779E | C49: Nissan Xtrail | D49: Petrol | E49: =100/11.93 -> 8.382229673 | F49: 3922 | I49: 0 | J49: 1 | K49: 0 | L49: 8.382229673 | M49: 0 | N49: 3922
B50: KBE 781E | C50: Nissan Xtrail | D50: Petrol | E50: =100/11.88 -> 8.417508418 | F50: =2284 -> 2284 | I50: 0 | J50: 1 | K50: 0 | L50: 8.417508418 | M50: 0 | N50: 2284
B51: KBJ 739E | C51: Toyota Corolla | D51: Petrol | E51: =100/9.67 -> 10.34126163 | F51: 608.8 | I51: 0 | J51: 1 | K51: 0 | L51: 10.34126163 | M51: 0 | N51: 608.8
B52: KBJ 740E | C52: Toyota Corolla | D52: Petrol | E52: =100/9.75 -> 10.25641026 | F52: 9022.61 | I52: 0 | J52: 1 | K52: 0 | L52: 10.25641026 | M52: 0 | N52: 9022.61
B53: KBJ 741E | C53: Toyota Avanza | D53: Petrol | E53: =100/10.04 -> 9.960159363 | F53: 8264 | I53: 0 | J53: 1 | K53: 0 | L53: 9.960159363 | M53: 0 | N53: 8264
B54: KBK 301J | C54: Toyota Corolla | D54: Petrol | E54: =100/10.65 -> 9.389671362 | F54: 7500 | I54: 0 | J54: 1 | K54: 0 | L54: 9.389671362 | M54: 0 | N54: 7500
B55: KBK 302J | C55: Toyota Corolla | D55: Petrol | E55: =100/8.09 -> 12.36093943 | F55: 9023.19 | I55: 0 | J55: 1 | K55: 0 | L55: 12.36093943 | M55: 0 | N55: 9023.19
B56: KBK 317J | C56: Toyota Corolla | D56: Petrol | E56: =100/11.01 -> 9.082652134 | F56: 7500 | I56: 0 | J56: 1 | K56: 0 | L56: 9.082652134 | M56: 0 | N56: 7500
I57: 0 | J57: 0 | K57: 0 | L57: 0 | M57: 0 | N57: 0
I58: 0 | J58: 0 | K58: 0 | L58: 0 | M58: 0 | N58: 0
I59: 0 | J59: 0 | K59: 0 | L59: 0 | M59: 0 | N59: 0
I60: 0 | J60: 0 | K60: 0 | L60: 0 | M60: 0 | N60: 0
I61: 0 | J61: 0 | K61: 0 | L61: 0 | M61: 0 | N61: 0
I62: 0 | J62: 0 | K62: 0 | L62: 0 | M62: 0 | N62: 0
I63: 0 | J63: 0 | K63: 0 | L63: 0 | M63: 0 | N63: 0
I64: 0 | J64: 0 | K64: 0 | L64: 0 | M64: 0 | N64: 0
I65: 0 | J65: 0 | K65: 0 | L65: 0 | M65: 0 | N65: 0
I66: 0 | J66: 0 | K66: 0 | L66: 0 | M66: 0 | N66: 0
I67: 0 | J67: 0 | K67: 0 | L67: 0 | M67: 0 | N67: 0
I68: 0 | J68: 0 | K68: 0 | L68: 0 | M68: 0 | N68: 0
I69: 0 | J69: 0 | K69: 0 | L69: 0 | M69: 0 | N69: 0
I70: 0 | J70: 0 | K70: 0 | L70: 0 | M70: 0 | N70: 0
I71: 0 | J71: 0 | K71: 0 | L71: 0 | M71: 0 | N71: 0
I72: 0 | J72: 0 | K72: 0 | L72: 0 | M72: 0 | N72: 0
I73: 0 | J73: 0 | K73: 0 | L73: 0 | M73: 0 | N73: 0
I74: 0 | J74: 0 | K74: 0 | L74: 0 | M74: 0 | N74: 0
I75: 0 | J75: 0 | K75: 0 | L75: 0 | M75: 0 | N75: 0
I76: 0 | J76: 0 | K76: 0 | L76: 0 | M76: 0 | N76: 0
I77: 0 | J77: 0 | K77: 0 | L77: 0 | M77: 0 | N77: 0
I78: 0 | J78: 0 | K78: 0 | L78: 0 | M78: 0 | N78: 0
I79: 0 | J79: 0 | K79: 0 | L79: 0 | M79: 0 | N79: 0
I80: 0 | J80: 0 | K80: 0 | L80: 0 | M80: 0 | N80: 0
I81: 0 | J81: 0 | K81: 0 | L81: 0 | M81: 0 | N81: 0
I82: 0 | J82: 0 | K82: 0 | L82: 0 | M82: 0 | N82: 0
I83: 0 | J83: 0 | K83: 0 | L83: 0 | M83: 0 | N83: 0
I84: =IF($D84="Diesel",1,0) -> 0 | J84: =IF($D84="Petrol",1,0) -> 0 | K84: =IF($D84="Diesel",$E84,0) -> 0 | L84: =IF($D84="Petrol",$E84,0) -> 0 | M84: =IF($D84="Diesll",$F84,0) -> 0 | N84: =IF($D84="Petrol",$F84,0) -> 0
I85: 0 | J85: 0 | K85: 0 | L85: 0 | M85: 0 | N85: 0
I86: 0 | J86: 0 | K86: 0 | L86: 0 | M86: 0 | N86: 0
I87: 0 | J87: 0 | K87: 0 | L87: 0 | M87: 0 | N87: 0
I88: 0 | J88: 0 | K88: 0 | L88: 0 | M88: 0 | N88: 0
I89: 0 | J89: 0 | K89: 0 | L89: 0 | M89: 0 | N89: 0
I90: 0 | J90: 0 | K90: 0 | L90: 0 | M90: 0 | N90: 0
I91: 0 | J91: 0 | K91: 0 | L91: 0 | M91: 0 | N91: 0
I92: 0 | J92: 0 | K92: 0 | L92: 0 | M92: 0 | N92: 0
I93: 0 | J93: 0 | K93: 0 | L93: 0 | M93: 0 | N93: 0
I94: 0 | J94: 0 | K94: 0 | L94: 0 | M94: 0 | N94: 0
I95: 0 | J95: 0 | K95: 0 | L95: 0 | M95: 0 | N95: 0
I96: 0 | J96: 0 | K96: 0 | L96: 0 | M96: 0 | N96: 0
I97: 0 | J97: 0 | K97: 0 | L97: 0 | M97: 0 | N97: 0
I98: 0 | J98: 0 | K98: 0 | L98: 0 | M98: 0 | N98: 0
I99: 0 | J99: 0 | K99: 0 | L99: 0 | M99: 0 | N99: 0
I100: 0 | J100: 0 | K100: 0 | L100: 0 | M100: 0 | N100: 0
I101: 0 | J101: 0 | K101: 0 | L101: 0 | M101: 0 | N101: 0
I102: 0 | J102: 0 | K102: 0 | L102: 0 | M102: 0 | N102: 0
I103: 0 | J103: 0 | K103: 0 | L103: 0 | M103: 0 | N103: 0
I104: 0 | J104: 0 | K104: 0 | L104: 0 | M104: 0 | N104: 0
C106: Sub-Total Number of Vehicles: | D106: =SUBTOTAL(3,D10:D104) -> 45 | I106: =SUM(I9:I103) -> 18 | J106: 27 | K106: 172.4528156 | L106: 265.0687394 | M106: 90674.99 | N106: 162668.38
D108: Averages: | E108: =SUBTOTAL(1,E$10:E104) -> 9.722701223 | F108: =SUBTOTAL(1,F$10:F104) -> 6057.489333
D110: Diesel
D111: Petrol
